bitfinex-derivatives/quotes_ETHF0:USTF0_20251203
["timestamp","ask_amount","ask_price","bid_price","bid_amount"]
[1764796765330,6.9662,3150.0,3149.9,3.2078]
[1764796765528,15.9638,3150.3,3149.9,5.9573]
[1764796765722,6.9614,3150.0,3149.5,5.0474]
[1764796766022,6.386,3149.6,3149.5,6.1322]
[1764796766219,6.386,3149.6,3149.5,3.21189744]
[1764796766624,6.386,3149.6,3149.5,0.00409744]
[1764796767021,47.186,3149.6,3149.5,0.00409744]
[1764796768320,6.386,3149.2,3149.1,6.1322]
[1764796768627,3.0646,3149.2,3149.1,9.1651]
[1764796769223,6.38999471,3149.2,3149.1,9.1689067]
[1764796770828,0.00399471,3149.2,3149.1,9.1689067]
[1764796771034,0.00399471,3149.2,3149.1,9.3276467]
[1764796771428,0.00399471,3149.2,3149.1,10.45020671]
[1764796771838,3.2078,3150.2,3149.1,4.33416671]
[1764796772131,3.2078,3150.2,3149.3,0.99725631]
[1764796772321,40.8,3150.1,3149.3,0.99725631]
[1764796772735,40.80279012,3150.1,3149.3,0.99725631]
[1764796772931,40.80279012,3150.1,3150.0,5.9573]
[1764796773128,40.80279012,3150.1,3150.0,7.7969]
[1764796773827,0.00279012,3150.1,3150.0,7.7969]
[1764796774028,5.92,3150.5,3150.4,5.9162]
[1764796774230,2.7122,3150.6,3150.5,7.5825]
[1764796774626,5.8123,3150.6,3150.5,5.9162]
[1764796774933,5.8123,3150.3,3150.2,6.07488]
[1764796775539,5.8123,3150.3,3150.2,2.95138]
[1764796775734,5.8123,3150.3,3150.2,0.15868]
[1764796776225,5.8123,3150.3,3150.2,2.95138]
[1764796776430,5.8123,3150.3,3150.2,3.78990631]
[1764796777744,5.8123,3150.3,3150.2,6.91340631]
[1764796778735,5.8123,3150.3,3149.9,4.04632631]
[1764796778736,7.0413,3150.0,3149.9,4.04632631]
[1764796778934,7.0413,3150.0,3149.9,3.2078]
[1764796779429,7.0413,3150.0,3149.9,2.85605923]
[1764796779742,43.5235,3150.0,3149.9,5.3775]
[1764796780339,43.5235,3150.0,3149.9,2.6495]
[1764796782035,43.5235,3150.0,3149.9,5.3775]
[1764796782226,43.5235,3150.0,3149.9,2.6495]
[1764796782430,43.5235,3150.0,3149.9,5.3775]
[1764796782734,43.5235,3150.0,3149.9,6.21602631]
[1764796787542,43.5235,3150.0,3149.9,3.48802631]
[1764796788043,5.5011,3149.8,3149.7,9.42382631]
[1764796789145,2.7235,3149.8,3149.7,9.42382631]
[1764796790041,5.5011,3150.5,3150.4,5.3775]
[1764796790343,5.5011,3150.5,3150.4,2.6495]
[1764796790544,5.5011,3150.3,3150.2,3.4910363]
[1764796790746,5.5011,3150.3,3150.2,6.2190363]
[1764796792248,5.5011,3150.3,3150.2,5.3775]
[1764796792838,40.8,3150.5,3150.4,5.3775]
[1764796793046,0.00369534,3150.6,3150.5,7.07317]
[1764796793352,0.00369534,3150.6,3150.5,10.28097]
[1764796793544,40.8,3150.9,3150.8,5.3775]
[1764796793745,40.8,3150.9,3150.8,3.49126959]
[1764796794051,40.8,3150.9,3150.8,0.84176959]
[1764796794450,40.80233695,3150.9,3150.8,0.84176959]
[1764796795363,5.5011,3150.8,3150.7,3.49126959]
[1764796795859,5.5011,3150.8,3150.7,6.21926959]
[1764796796963,5.5011,3150.8,3150.7,0.84176959]
[1764796797658,5.5011,3150.8,3150.7,3.49126959]
[1764796798361,5.5011,3150.8,3150.7,0.84176959]
[1764796799058,46.3011,3150.8,3150.7,0.84176959]
[1764796799858,43.5235,3150.8,3150.7,3.49126959]
[1764796800067,43.5235,3150.8,3150.7,6.21926959]
[1764796800269,43.5235,3150.8,3150.7,5.3775]
[1764796800763,43.5235,3150.8,3150.7,2.6495]
[1764796801166,43.5235,3150.8,3150.7,5.3775]
[1764796801465,43.5235,3150.8,3150.7,2.6495]
[1764796803368,43.5235,3150.8,3150.7,5.53616]
[1764796803369,2.7235,3150.8,3150.7,5.53616]
[1764796803567,0.00233695,3150.9,3150.8,5.24666]
[1764796803767,3.2078,3151.8,3151.0,1.4721]
[1764796803961,2.5699,3151.3,3151.2,5.92972598]
[1764796804171,2.5699,3151.3,3151.2,6.21030131]
[1764796804366,5.104,3151.3,3151.2,6.21030131]
[1764796804568,5.104,3151.3,3151.2,3.45720131]
[1764796804764,5.10746018,3151.3,3151.2,3.45720131]
[1764796805266,5.10746018,3151.3,3151.1,6.21030131]
[1764796805267,5.104,3151.2,3151.1,6.21030131]
[1764796805768,0.00346018,3151.3,3151.2,5.088]
[1764796806165,2.57336018,3151.3,3151.2,5.088]
[1764796806566,0.00346018,3151.3,3151.2,5.088]
[1764796807267,2.57336018,3151.3,3151.2,5.92851725]
[1764796807467,5.104,3151.2,3151.1,0.84051725]
[1764796807667,6.5362,3151.0,3150.9,0.00476213]
[1764796809077,6.464,3150.5,3150.4,0.84051725]
[1764796809273,5.104,3150.1,3150.0,9.29500725]
[1764796809576,45.904,3150.1,3150.0,9.29500725]
[1764796809771,45.904,3150.1,3150.0,6.54190725]
[1764796811165,45.904,3150.1,3150.0,4.20700725]
[1764796811472,45.904,3150.1,3150.0,3.2078]
[1764796811873,45.904,3150.1,3150.0,5.5427]
[1764796812172,45.904,3150.1,3150.0,3.2078]
[1764796817978,5.104,3149.8,3149.7,5.92851725]
[1764796818167,5.104,3149.8,3149.7,9.13631725]
[1764796818373,40.8,3150.1,3150.0,6.5601]
[1764796818568,6.464,3150.5,3150.4,2.3349]
[1764796818978,47.264,3150.5,3150.4,2.3349]
[1764796819578,5.104,3150.1,3150.0,0.84180103]
[1764796821084,45.904,3150.1,3150.0,5.92980103]
[1764796821577,43.3699,3150.1,3150.0,7.40190103]
[1764796821781,5.104,3150.6,3150.5,5.088]
[1764796821981,2.5699,3150.6,3150.5,6.5601]
[1764796822185,40.8,3150.9,3150.8,2.3349]
[1764796823080,5.104,3150.8,3150.7,3.17709345]
[1764796823287,5.104,3150.8,3150.7,5.93019345]
[1764796824688,2.5699,3150.8,3150.7,5.93019345]
[1764796824983,3.2078,3151.2,3150.7,6.08885345]
[1764796825179,8.3118,3151.2,3151.1,5.088]
[1764796825488,45.904,3151.2,3151.1,2.3349]
[1764796825690,45.904,3151.2,3151.1,5.088]
[1764796825691,43.3699,3151.2,3151.1,5.088]
[1764796826089,2.5699,3151.1,3151.0,2.3349]
[1764796826382,5.104,3151.0,3150.9,3.33598149]
[1764796826788,3.2078,3152.7,3152.0,1.6307]
[1764796826980,3.2078,3152.7,3152.2,0.84124521]
[1764796826981,0.29562077,3152.6,3152.2,0.84124521]
[1764796827179,3.2078,3152.7,3152.6,5.088]
[1764796827487,3.2078,3153.3,3152.6,5.088]
[1764796827684,2.5699,3152.7,3152.6,5.09025515]
[1764796827884,8.3118,3152.7,3152.6,0.00701728]
[1764796828590,49.1118,3152.7,3152.6,0.00701728]
[1764796828787,5.104,3152.1,3151.9,0.84124521]
[1764796828987,1.4322,3152.5,3152.0,1.4721]
[1764796828988,8.3118,3152.3,3152.0,1.4721]
[1764796829186,2.5699,3151.9,3151.8,5.088]
[1764796829889,5.104,3151.9,3151.8,2.33812406]
[1764796830084,5.104,3151.9,3151.8,0.00322406]
[1764796830580,2.5699,3151.9,3151.8,5.09122406]
[1764796831185,5.104,3151.9,3151.8,5.09122406]
[1764796831385,5.104,3151.9,3151.8,2.33812406]
[1764796831587,5.104,3151.9,3151.8,0.00322406]
[1764796831987,5.104,3151.9,3151.8,2.33812406]
[1764796832485,5.104,3151.9,3151.8,5.09122406]
[1764796832486,2.5699,3151.9,3151.8,5.09122406]
[1764796833091,5.104,3151.9,3151.8,2.33812406]
[1764796835495,5.104,3151.9,3151.8,5.09122406]
[1764796836297,2.5699,3151.9,3151.8,5.09122406]
[1764796836493,44.0078,3152.7,3152.1,0.15859]
[1764796836694,2.3052,3152.2,3152.1,4.75299]
[1764796837197,44.0078,3152.7,3152.1,4.75299]
[1764796839200,4.3985,3152.2,3152.1,0.15859]
[1764796839603,2.2898,3151.9,3151.8,4.55172406]
[1764796840004,4.3831,3151.9,3151.8,4.55172406]
[1764796840902,2.2898,3151.9,3151.8,4.55172406]
[1764796842294,3.2078,3152.3,3151.8,4.55172406]
[1764796842794,7.5909,3152.2,3151.8,0.00322406]
[1764796843001,2.2898,3151.9,3151.8,4.55172406]
[1764796843397,3.2078,3152.2,3151.8,4.71033406]
[1764796843602,1.2728,3152.5,3151.8,4.71033406]
[1764796843803,1.2728,3152.5,3151.8,8.49833406]
[1764796844499,2.2898,3151.9,3151.8,8.49833406]
[1764796845191,5.4976,3152.2,3152.1,2.289]
[1764796845397,7.5909,3152.2,3152.1,2.289]
[1764796845901,4.3831,3152.2,3152.1,2.289]
[1764796846095,7.5909,3152.2,3152.1,2.289]
[1764796846397,7.5909,3152.2,3152.1,4.5485]
[1764796846590,7.5909,3152.2,3152.1,2.289]
[1764796847104,2.2898,3151.9,3151.8,4.71033406]
[1764796847301,3.2078,3152.2,3151.8,4.71033406]
[1764796847505,7.5909,3152.2,3152.1,2.289]
[1764796848304,2.2898,3151.9,3151.8,5.55157927]
[1764796848703,4.3831,3151.9,3151.8,1.00307927]
[1764796849002,4.3831,3151.9,3151.8,0.16183406]
[1764796851412,4.3831,3151.9,3151.8,0.00322406]
[1764796852107,4.3831,3151.9,3151.8,4.55172406]
[1764796852108,45.1831,3151.9,3151.8,4.55172406]
[1764796853308,45.1831,3151.9,3151.8,5.78191458]
[1764796853309,43.0898,3151.9,3151.8,5.78191458]
[1764796853510,43.0898,3151.9,3151.8,4.55172406]
[1764796855112,43.0898,3151.9,3151.8,5.67338435]
[1764796856106,43.0898,3151.9,3151.8,4.55172406]
[1764796860715,7.5909,3152.5,3152.4,4.5485]
[1764796861110,48.3909,3152.5,3152.4,4.5485]
[1764796861307,4.3831,3152.4,3152.3,3.41294183]
[1764796861507,4.3831,3152.3,3152.2,1.12394183]
[1764796861715,4.3831,3152.2,3152.1,3.57099442]
[1764796861907,4.3831,3152.2,3152.1,1.12340442]
[1764796862209,5.7066,3152.0,3151.9,1.12340442]
[1764796862413,8.9144,3152.0,3151.9,1.12340442]
[1764796862620,4.3831,3151.9,3151.8,1.12662848]
[1764796864908,4.3831,3151.9,3151.8,3.04492848]
[1764796865108,4.3831,3151.9,3151.8,4.21762406]
[1764796865713,4.3831,3151.9,3151.8,5.9035368]
[1764796865913,4.3831,3151.9,3151.8,4.21762406]
[1764796867212,4.3831,3151.9,3151.8,5.9035368]
[1764796867413,4.3831,3151.9,3151.8,4.21762406]
[1764796867604,4.3831,3151.9,3151.8,0.00322406]
[1764796868013,4.3831,3151.9,3151.8,0.84623818]
[1764796868815,4.67969842,3151.9,3151.8,0.00322406]
[1764796869807,45.47969842,3151.9,3151.8,0.00322406]
[1764796872017,43.38639842,3151.9,3151.8,4.21762406]
[1764796872217,3.2078,3152.0,3151.9,4.2144]
[1764796872523,4.1416,3151.9,3151.8,3.04397016]
[1764796872722,44.9416,3151.9,3151.8,3.04395529]
[1764796872922,44.9416,3151.9,3151.8,4.21762406]
[1764796873934,44.9416,3151.9,3151.8,0.00322406]
[1764796874231,44.9416,3151.9,3151.8,1.92152406]
[1764796875830,44.9416,3151.9,3151.8,4.21762406]
[1764796876935,44.9416,3151.9,3151.8,5.9035368]
[1764796877135,42.7771,3151.9,3151.8,5.9035368]
[1764796878443,42.7771,3151.9,3151.8,5.90291335]
[1764796878932,42.7771,3151.9,3151.8,4.21762406]
[1764796879340,3.2078,3152.4,3151.8,4.21762406]
[1764796879538,4.1416,3152.3,3152.2,2.76090671]
[1764796879835,44.9416,3152.3,3152.2,2.76090671]
[1764796880037,44.9416,3152.3,3152.2,0.84260671]
[1764796890945,4.1416,3152.2,3152.1,0.84260671]
[1764796892843,17.14319252,3152.2,3152.0,6.71e-06]
[1764796893044,4.1416,3151.9,3151.8,0.00322406]
[1764796893244,7.3494,3151.9,3151.8,0.00322406]
[1764796896644,3.2078,3151.9,3151.8,3.94842406]
[1764796897349,5.0436,3151.9,3151.8,5.63363748]
[1764796898345,44.0078,3152.3,3151.8,12.89193474]
[1764796898553,3.2078,3152.3,3152.2,3.7222]
[1764796899146,4.9879,3152.3,3152.2,3.7222]
[1764796899554,3.2078,3152.3,3152.2,3.7222]
[1764796899754,6.7316,3152.7,3152.6,3.7222]
[1764796900154,7.0281509,3152.7,3152.6,3.7222]
[1764796900354,7.0281509,3152.7,3152.6,1.8334]
[1764796900656,6.7316,3152.7,3152.6,3.7222]
[1764796901154,7.02815871,3152.7,3152.6,3.7222]
[1764796902250,6.7316,3152.7,3152.6,3.7222]
[1764796903142,6.7316,3152.7,3152.6,1.8334]
[1764796904552,4.9879,3152.7,3152.6,7.5102]
[1764796904750,40.8,3152.9,3152.8,3.7222]
[1764796905358,3.5238,3152.7,3152.6,5.07086923]
[1764796905561,3.5238,3152.7,3152.6,3.94657]
[1764796905949,3.5238,3152.7,3152.6,5.77997]
[1764796906150,3.5238,3152.7,3152.6,3.788]
[1764796906652,3.5238,3152.7,3152.6,7.5102]
[1764796907155,3.5238,3152.7,3152.6,5.6214]
[1764796907357,3.5238,3152.7,3152.6,1.8334]
[1764796908458,3.5238,3152.6,3152.5,5.90719923]
[1764796908755,1.7801,3152.6,3152.5,5.90719923]
[1764796908951,40.8,3152.9,3152.5,2.74591342]
[1764796909259,3.5238,3152.6,3152.5,2.95668621]
[1764796909958,3.5238,3152.6,3152.5,5.90618621]
[1764796913857,3.5238,3152.6,3152.5,2.95668621]
[1764796914061,3.5238,3152.6,3152.5,1.12328621]
[1764796914259,3.5238,3152.5,3152.4,6.32305621]
[1764796914774,3.5238,3152.5,3152.4,4.48965621]
[1764796914962,40.8,3152.9,3152.4,8.21185621]
[1764796915163,3.5238,3152.5,3152.4,8.21185621]
[1764796915361,40.8,3152.9,3152.8,3.7222]
[1764796915557,40.8,3152.9,3152.8,1.8334]
[1764796916466,40.8,3152.9,3152.8,3.7222]
[1764796917153,3.2078,3153.1,3152.7,1.25829726]
[1764796917464,6.7316,3153.1,3153.0,4.7829]
[1764796918862,3.5238,3153.0,3152.9,1.99195]
[1764796919263,3.5238,3153.0,3152.9,3.88075]
[1764796920662,3.53156947,3153.3,3153.2,1.8334]
[1764796921363,3.5238,3153.1,3153.0,2.8941]
[1764796921563,0.00776947,3153.3,3152.7,1.12328621]
[1764796921564,3.5238,3152.9,3152.7,1.12328621]
[1764796921772,3.5238,3152.5,3152.4,4.84548621]
[1764796921962,3.5238,3152.4,3152.3,2.95668621]
[1764796922281,3.5238,3152.3,3152.2,2.95668621]
[1764796922571,4.0169,3153.0,3152.1,1.12328621]
[1764796922572,3.5238,3152.2,3152.1,1.12328621]
[1764796922766,3.5238,3152.1,3152.0,1.12328621]
[1764796923161,3.5238,3152.0,3151.9,1.12328621]
[1764796923469,40.8,3152.4,3151.8,1.12651027]
[1764796923470,3.544,3151.9,3151.8,1.12651027]
[1764796923657,3.5355,3151.9,3151.8,1.12651027]
[1764796923863,3.5355,3151.9,3151.8,0.00322406]
[1764796925271,3.5355,3151.9,3151.8,1.72172406]
[1764796927067,3.5355,3151.9,3151.8,0.00322406]
[1764796927272,3.5355,3151.0,3150.9,3.2078]
[1764796927463,3.5355,3151.0,3150.9,4.9263]
[1764796927769,44.3355,3151.0,3150.9,4.9263]
[1764796928165,44.33903023,3151.0,3150.9,3.211653]
[1764796928364,44.33903023,3151.0,3150.9,0.003853]
[1764796930060,44.33903023,3151.0,3148.2,6.23349098]
[1764796930258,44.33903023,3151.0,3148.9,2.24455774]
[1764796930259,3.2078,3149.0,3148.9,2.24455774]
[1764796930471,0.31913636,3149.0,3148.5,1.093]
[1764796930668,3.2078,3148.7,3148.6,1.68438267]
[1764796930972,3.2078,3148.7,3148.1,1.68438267]
[1764796930973,45.09835292,3148.7,3148.1,1.68438267]
[1764796931169,3.2078,3148.2,3148.1,1.68701067]
[1764796933364,3.2078,3148.2,3148.1,0.002628]
[1764796933670,10.32048338,3148.2,3147.0,1.093]
[1764796933970,3.2078,3147.1,3147.0,1.093]
[1764796934468,3.2078,3147.1,3147.0,1.09562381]
[1764796934669,0.00476213,3147.4,3147.0,10.57372381]
[1764796934869,0.00476213,3147.4,3147.3,3.4781]
[1764796935065,40.8,3148.1,3147.0,1.09562381]
[1764796935066,3.2078,3147.9,3147.8,3.4781]
[1764796935678,3.205172,3147.9,3147.8,3.4781]
[1764796936972,3.205172,3147.9,3147.8,1.7185]
[1764796937179,3.205172,3147.9,3147.8,3.4781]
[1764796937378,0.00476213,3148.2,3148.1,3.4781]
[1764796938076,3.2078,3149.2,3149.0,1.093]
[1764796938578,40.8,3149.1,3149.0,1.093]
[1764796939181,3.2078,3149.2,3149.1,3.4781]
[1764796939379,3.2110575,3149.2,3149.1,3.4781]
[1764796940777,0.0032575,3149.2,3149.1,3.4781]
[1764796943075,0.0032575,3149.2,3149.1,1.7185]
[1764796943285,0.0032575,3149.2,3149.0,1.093]
[1764796945396,0.0032575,3149.2,3149.1,3.4781]
[1764796948195,0.00476213,3149.4,3149.3,3.4781]
[1764796948396,0.00476213,3149.4,3149.3,3.63683]
[1764796948597,0.00476213,3149.4,3149.3,6.84463]
[1764796949191,0.00756897,3149.4,3149.3,6.84839389]
[1764796951397,3.2078,3150.2,3150.1,1.7185]
[1764796951598,4.01015245,3150.2,3150.1,3.4781]
[1764796952292,4.01280816,3150.2,3150.1,3.4781]
[1764796952802,4.01280816,3150.2,3150.0,1.093]
[1764796952994,0.80235245,3150.1,3150.0,1.093]
[1764796953996,0.00265571,3150.2,3150.0,4.6206]
[1764796954198,0.80635017,3150.2,3150.0,1.093]
[1764796954699,1.69487336,3150.8,3150.2,5.1848]
[1764796954894,2.79817416,3152.2,3151.7,5.1848]
[1764796955092,3.2078,3152.8,3151.8,3.2078]
[1764796955402,41.14662698,3152.7,3151.8,3.2078]
[1764796955600,0.34662698,3152.6,3151.8,3.2078]
[1764796955800,0.00476213,3152.5,3152.0,2.1807]
[1764796956004,0.35138911,3152.5,3152.0,2.1807]
[1764796956306,0.00476213,3152.5,3152.0,2.1807]
[1764796956804,0.35125702,3152.5,3152.0,2.1807]
[1764796957304,0.00476213,3152.5,3152.0,2.1807]
[1764796958804,3.35706213,3152.5,3152.4,3.2078]
[1764796959005,7.39526213,3152.5,3152.4,3.2078]
[1764796960503,0.00476213,3152.5,3152.4,11.337]
[1764796964601,8.22606213,3152.5,3152.4,7.1874]
[1764796964800,8.22606213,3152.5,3152.4,3.2078]
[1764796965812,10.72426213,3152.5,3152.4,3.2078]
[1764796970111,8.22606213,3152.5,3152.4,7.1874]
[1764796970306,8.22606213,3152.5,3152.4,3.2078]
[1764796971411,4.18786213,3152.5,3152.4,11.337]
[1764796972220,0.00476213,3152.5,3152.4,11.337]
[1764796974913,8.22606213,3152.5,3152.4,7.1874]
[1764796976220,8.22606213,3152.5,3152.4,3.2078]
[1764796978217,8.22606213,3152.5,3152.4,7.1874]
[1764796978616,8.22606213,3152.5,3152.4,11.337]
[1764796978805,0.00476213,3152.5,3152.4,11.337]
[1764796979216,4.18786213,3152.5,3152.4,11.337]
[1764796979410,0.00476213,3152.5,3152.4,11.337]
[1764796980421,0.00374881,3152.6,3152.5,10.79267]
[1764796980814,0.74422695,3153.1,3153.0,10.79265]
[1764796981116,0.00905,3154.1,3153.6,8.1292]
[1764796981311,8.2213,3153.7,3153.6,8.1292]
[1764796981511,0.00905,3154.1,3154.0,10.6341]
[1764796981715,8.2213,3154.0,3153.9,3.2078]
[1764796982015,8.2213,3154.0,3153.5,2.50966213]
[1764796982016,8.2213,3153.6,3153.5,0.00476213]
[1764796982409,9.91416766,3153.6,3152.7,3.2078]
[1764796982716,8.2213,3152.8,3152.7,7.1874]
[1764796983019,8.2213,3152.8,3152.7,3.2078]
[1764796983616,8.2213,3152.8,3152.7,7.1874]
[1764796983817,3.8878,3153.3,3153.2,3.8419]
[1764796984013,3.8878,3153.3,3153.2,7.9523]
[1764796984218,5.58066766,3153.3,3153.2,3.8419]
[1764796984419,9.54206766,3153.3,3153.2,3.8419]
[1764796984820,7.8492,3153.3,3153.2,3.8419]
[1764796985518,9.55614639,3153.3,3153.2,3.8419]
[1764796987819,3.8878,3152.8,3152.7,11.1601]
[1764796988825,7.8492,3152.8,3152.7,3.2078]
[1764796989029,9.55591758,3152.8,3152.7,3.2078]
[1764796989826,8.5652,3152.5,3152.4,0.00476213]
[1764796990225,51.07209878,3152.5,3152.4,0.00476213]
[1764796990734,40.8,3152.5,3152.4,7.95706213]
[1764796991224,47.97424698,3152.5,3152.4,0.00476213]
[1764796991416,40.8,3152.5,3152.4,3.84666213]
[1764796991624,40.8,3152.5,3152.4,7.95706213]
[1764796993021,40.8,3152.5,3152.4,3.84666213]
[1764796993217,42.50687369,3152.5,3152.4,3.84666213]
[1764796993421,43.60155144,3152.5,3152.4,3.84666213]
[1764796993832,41.89467775,3152.5,3152.4,3.84666213]
[1764796994030,7.8492,3152.1,3152.0,3.2078]
[1764796994233,8.94387775,3152.1,3152.0,3.2078]
[1764796994930,3.8878,3151.9,3151.8,3.84556487]
[1764796995133,8.94387775,3151.9,3151.8,3.84556487]
[1764796996334,8.94387775,3151.9,3151.8,0.00366487]
[1764796996732,1.09467775,3151.9,3151.8,7.95596487]
[1764796997231,0.74873416,3151.9,3151.8,7.95596487]
[1764796997427,0.00476213,3152.2,3152.1,7.9523]
[1764796997629,0.74738944,3152.2,3152.1,7.9523]
[1764796997931,1.0932247,3152.2,3152.1,7.9523]
[1764796998125,4.9810247,3152.2,3152.1,7.9523]
[1764796999032,1.0932247,3152.2,3152.1,7.9523]
[1764796999431,4.9810247,3152.2,3152.1,7.9523]
[1764797001337,4.98099069,3152.2,3152.1,7.9523]
[1764797002238,1.09319069,3152.2,3152.1,7.9523]
[1764797004639,0.00476213,3152.2,3152.1,7.9523]
[1764797011034,3.89256213,3152.2,3152.1,7.9523]
[1764797011238,7.85396213,3152.2,3152.1,7.9523]
[1764797011639,3.89256213,3152.2,3152.1,7.9523]
[1764797012141,3.89256213,3152.2,3152.1,11.1601]
[1764797012441,3.89256213,3152.2,3152.1,7.9523]
[1764797012646,3.89256213,3152.2,3152.1,11.1601]
[1764797013549,4.63562622,3152.2,3152.1,11.1601]
[1764797013944,3.89256213,3152.2,3152.1,11.1601]
[1764797014150,4.63562264,3152.2,3152.1,11.1601]
[1764797014350,8.94322476,3152.2,3152.1,3.2078]
[1764797015145,8.94322476,3152.2,3152.1,6.6724]
[1764797016954,8.94322476,3152.2,3152.1,10.3716]
[1764797019056,1.09402476,3152.2,3152.1,10.3716]
[1764797020753,4.49592476,3152.2,3152.1,10.3716]
[1764797021446,1.09402476,3152.2,3152.1,10.3716]
[1764797025154,4.49592476,3152.2,3152.1,10.3716]
[1764797025354,7.76912476,3152.2,3152.1,10.3716]
[1764797025556,4.49592476,3152.2,3152.1,10.3716]
[1764797026359,7.76912476,3152.2,3152.1,10.3716]
[1764797027262,1.09470527,3152.2,3152.1,10.3716]
[1764797028458,1.09470527,3152.2,3152.1,10.53019]
[1764797028764,6.6751,3152.8,3152.7,6.8695]
[1764797028950,6.6751,3152.8,3152.7,10.0773]
[1764797029154,6.6751,3152.8,3152.7,3.2078]
[1764797029356,6.6751,3152.4,3152.3,10.0773]
[1764797029665,6.67986213,3152.7,3152.6,6.8695]
[1764797030464,6.67986213,3152.7,3152.6,3.3931]
[1764797030655,6.6751,3152.4,3152.3,10.0773]
[1764797030856,6.6751,3152.4,3152.3,6.6009]
[1764797032464,6.6751,3152.4,3152.3,3.3931]
[1764797033261,6.6751,3152.2,3152.1,10.0773]
[1764797034759,3.4019,3152.2,3152.1,10.0773]
[1764797035065,6.6751,3152.2,3152.1,10.0773]
[1764797035367,6.6751,3152.2,3152.1,6.6009]
[1764797035555,6.6751,3152.2,3152.1,10.0773]
[1764797036363,6.6751,3152.2,3152.1,6.6009]
[1764797038162,6.6751,3152.2,3152.1,3.2078]
[1764797038367,3.4019,3151.9,3151.8,6.87316487]
[1764797038762,6.6751,3151.9,3151.8,0.00366487]
[1764797038968,6.6751,3151.9,3151.8,3.39676487]
[1764797039357,6.6751,3151.9,3151.8,6.87316487]
[1764797040572,7.75898196,3151.9,3151.8,6.87316487]
[1764797042073,7.75898196,3151.9,3151.8,0.00366487]
[1764797042268,6.6751,3151.8,3151.7,3.2078]
[1764797042569,6.6751,3151.6,3151.5,0.00476213]
[1764797042772,6.6751,3151.6,3150.5,2.0241]
[1764797042773,3.4019,3151.1,3151.0,8.8936]
[1764797042969,1.08385419,3151.1,3151.0,8.8936]
[1764797043274,40.8,3151.6,3151.5,8.6551]
[1764797043479,41.88639634,3151.6,3151.5,8.6551]
[1764797043771,41.88639634,3151.6,3151.5,3.3931]
[1764797045568,41.88639634,3151.6,3151.5,6.8328]
[1764797046161,41.88639634,3151.6,3151.5,8.6551]
[1764797047870,0.74317029,3151.6,3151.5,8.6551]
[1764797048175,0.00340643,3151.6,3151.5,8.6551]
[1764797048573,6.75940643,3151.6,3151.5,3.3931]
[1764797048773,7.49804778,3151.6,3151.5,3.3931]
[1764797048971,7.49804778,3151.6,3151.5,6.8328]
[1764797049171,6.75940643,3151.6,3151.5,8.6551]
[1764797050168,3.27800643,3151.6,3151.5,8.6551]
[1764797050375,4.01654716,3151.6,3151.5,8.6551]
[1764797050767,3.27800643,3151.6,3151.5,8.6551]
[1764797051172,0.00340643,3151.6,3151.5,8.6551]
[1764797051375,3.27800643,3151.6,3151.5,8.6551]
[1764797053074,6.756,3151.3,3151.2,9.73746213]
[1764797053375,3.2746,3151.3,3151.2,9.73746213]
[1764797053580,6.756,3151.1,3151.0,0.00314788]
[1764797053775,9.06767224,3151.1,3151.0,0.00314788]
[1764797053971,6.756,3150.9,3150.8,3.2078]
[1764797054169,48.63720026,3150.9,3150.8,3.2078]
[1764797054374,48.2945396,3150.9,3150.8,3.2078]
[1764797054574,48.2945396,3150.9,3150.5,2.0241]
[1764797054575,6.756,3150.6,3150.5,3.21256213]
[1764797054970,6.756,3150.6,3150.5,3.21572666]
[1764797055380,47.556,3150.6,3150.5,0.00792666]
[1764797057380,47.556,3150.6,3149.7,3.2078]
[1764797057381,6.756,3149.8,3149.7,3.2078]
[1764797057686,6.756,3149.8,3149.3,9.7327]
[1764797057687,6.756,3149.4,3149.3,9.7327]
[1764797057977,3.2746,3149.4,3149.3,9.7327]
[1764797058184,47.556,3149.4,3149.3,9.7327]
[1764797058376,47.556,3149.4,3149.0,1.8223]
[1764797058575,47.556,3149.4,3149.0,3.09405764]
[1764797058576,6.756,3149.1,3149.0,3.09405764]
[1764797058883,6.75918801,3149.1,3149.0,0.00885764]
[1764797059481,6.75918801,3149.1,3149.0,3.09405764]
[1764797060077,0.00318801,3149.1,3149.0,8.35605764]
[1764797060582,40.8,3149.4,3149.3,6.5249]
[1764797060773,40.8,3149.4,3149.3,9.7327]
[1764797061884,40.80369047,3149.4,3149.3,9.7327]
[1764797062584,0.00369047,3149.4,3149.3,9.7327]
[1764797063484,9.9638,3150.3,3149.5,1.8223]
[1764797063675,9.9638,3150.3,3149.3,9.89143]
[1764797063676,1.8525,3150.0,3149.3,9.89143]
[1764797063876,42.6525,3150.0,3149.3,9.89143]
[1764797064280,42.6525,3150.0,3149.3,9.7327]
[1764797064486,3.2078,3149.9,3149.3,9.7327]
[1764797064783,3.21073923,3149.9,3149.3,9.7327]
[1764797065183,3.27753923,3149.9,3149.8,3.0852]
[1764797065390,6.75893923,3149.9,3149.8,6.5249]
[1764797065691,6.75893923,3149.9,3149.8,3.0852]
[1764797066289,3.27753923,3149.9,3149.8,6.5249]
[1764797066490,6.75893923,3149.9,3149.8,6.5249]
[1764797067192,3.27753923,3149.9,3149.8,6.5249]
[1764797069793,0.00293923,3149.9,3149.8,6.5249]
[1764797071290,3.27753923,3149.9,3149.8,6.5249]
[1764797071491,6.756,3149.6,3149.5,8.3472]
[1764797071792,6.756,3149.4,3149.3,3.2078]
[1764797072593,6.756,3149.1,3149.0,0.00885764]
[1764797073193,47.556,3149.1,3149.0,0.00885764]
[1764797077693,47.556,3149.1,3149.0,6.11265764]
[1764797077996,44.0746,3149.1,3149.0,7.91935764]
[1764797078993,40.8,3149.1,3149.0,7.91935764]
[1764797079189,15.9028,3149.8,3149.0,7.91935764]
[1764797079396,7.17190794,3149.7,3149.6,2.9993]
[1764797079596,6.0979,3149.6,3149.0,1.81555764]